Cogmind - Beta 10.2 @@@ ROGUE MODE // 2021.03.20 @ 18:40:26 Player: ChromeKnight Result: Destroyed by D-53 Grenadier with Mini Grenade Launcher Performance ------------- Evolutions (0) 0 Regions Visited (2) 400 Robots Destroyed (10) 50 Value Destroyed (219) 219 Prototype IDs (0) 0 Alien Tech Used (0) 0 Bonus (0) 0 TOTAL SCORE: 669 Bonus ------- None Cogmind --------- Core Integrity 0/250 Matter 300/300 Energy 94/100 System Corruption 0% Temperature Cool (0) Movement Core (100) Ox1 Location -10/Mines Parts ------- > --- POWER (1) -------- (None) > --- PROPULSION (2) --- (None) > --- UTILITY (2) ------ Small Storage Unit > --- WEAPON (2) ------- (None) > --- INVENTORY (6) ---- Improved Heat Sink Peak State ------------ > --- POWER ------------ Light Ion Engine > --- PROPULSION ------- Aluminum Leg Aluminum Leg > --- UTILITY ---------- Improved Heat Sink Small Storage Unit > --- WEAPON ----------- Medium Laser Particle Gun > --- INVENTORY -------- Improved Heat Sink Small Laser Particle Gun [Rating: 10] Favorites ----------- Power Ion Engine Engine Ion Engine Propulsion Aluminum Leg Leg Aluminum Leg Utility Small Storage Unit Device Improved Heat Sink Storage Small Storage Unit Processor Targeting Computer Weapon Medium Laser Energy Gun Medium Laser Ballistic Gun Light Assault Rifle Build | -11 -10 -10 ------- Run | Scr Mat Min Slots Evolved . | . . . Power . | . . . Propulsion . | . . . Utility . | . . . Weapon . | . . . Parts Attached 19 | 6 1 12 Power 2 | 1 . 1 Engine 2 | 1 . 1 Core . | . . . Reactor . | . . . Propulsion 4 | 2 . 2 Treads . | . . . Leg 4 | 2 . 2 Wheel . | . . . Hover . | . . . Flight . | . . . Utility 3 | 1 1 1 Device 1 | . . 1 Storage 1 | 1 . . Processor 1 | . 1 . Hackware . | . . . Protection . | . . . Artifact . | . . . Weapon 10 | 2 . 8 Energy Gun 9 | 2 . 7 Energy Cannon . | . . . Ballistic Gun 1 | . . 1 Ballistic Cannon . | . . . Launcher . | . . . Special Weapon . | . . . Impact Weapon . | . . . Slashing Weapon . | . . . Piercing Weapon . | . . . Special Melee Weapon . | . . . Unidentified Prototypes . | . . . Parts Lost 15 | . . 15 Power 2 | . . 2 Propulsion 4 | . . 4 Utility 2 | . . 2 Weapon 7 | . . 7 Highest Loss Streak 8 | . . 8 Average Slot Usage (%) 87 | . 97 84 Engine 12 | . 14 12 Leg 20 | . 28 18 Device 6 | . . 8 Storage 14 | . 14 14 Processor 5 | . 11 4 Energy Gun 25 | . 28 25 Naked Turns . | . . . Heaviest Build 13 | 12 12 13 Greatest Support 20 | 20 20 20 Greatest Overweight (x) 3 | 2 . 3 Average Overweight (x) . | . . . Largest Inventory Capacity 6 | 6 6 6 Average Capacity 5 | 5 6 6 Most Carried 3 | 1 2 3 Average Carried 1 | . 1 1 Final Capacity 6 | 6 6 6 Final Carried 2 | 1 2 1 Class Distribution -------------------- 50% | Mutant 49% | Scavenger-Mutant Dominant Class ---------------- Mutant | -10/Materials Scavenger-Mutant | -10/Mines Resources | -11 -10 -10 ----------- Run | Scr Mat Min Matter Collected 392 | 227 43 122 Remotely . | . . . Salvage Created 408 | . 50 358 Parts 20 | . 5 15 Haulers Intercepted . | . . . Recyclers Shooed . | . . . Parts Field Recycled . | . . . Retrieved Matter . | . . . Parts Self-Destructed . | . . . Prevented . | . . . Kills | -11 -10 -10 ------- Run | Scr Mat Min Combat Hostiles Destroyed 7 | . 3 4 Guns 7 | . 3 4 Classes Destroyed 4 | . 1 3 Builder 1 | . . 1 Recycler 2 | . . 2 Swarmer 3 | . 3 . Grunt 4 | . . 4 Best Kill Streak 3 | . 3 2 Combat Bots Only 3 | . 3 2 Max Kills in Single Turn 1 | . 1 1 Gunslinging . | . . . Exploded . | . . . Melee . | . . . Uniques/NPCs Destroyed . | . . . Combat | -11 -10 -10 -------- Run | Scr Mat Min Damage Taken 1126 | . 49 1077 Core 266 | . . 266 Absorbed by Shields . | . . . Core Remaining (%) 100 | 100 . . Volleys Fired 52 | . 3 49 Largest 2 | . 2 2 Hottest 115 | . 90 115 Shots Fired 75 | . 6 69 Gun 75 | . 6 69 Cannon . | . . . Launcher . | . . . Special . | . . . Kinetic 23 | . . 23 Thermal 52 | . 6 46 Explosive . | . . . Electromagnetic . | . . . Robot Hit Streak 18 | . 3 18 Robot Miss Streak 2 | . 2 2 Penetration Max . | . . . Secondary Targets 2 | . 1 1 Max Gunslinging Chain 1 | . 1 1 Shots Hit Robots 61 | . 3 58 Core Hits 21 | . 3 18 Critical Hits . | . . . Critical Kills . | . . . Critical Parts Destroyed . | . . . Melee Attacks . | . . . Impact . | . . . Slashing . | . . . Piercing . | . . . Sneak Attacks . | . . . Combat Hostiles . | . . . Follow-up Attacks . | . . . Damage Inflicted 703 | . 50 653 Guns 699 | . 50 649 Cannons . | . . . Explosions . | . . . Melee . | . . . Ramming 4 | . . 4 Kinetic 148 | . . 148 Thermal 551 | . 50 501 Explosive . | . . . Electromagnetic . | . . . Impact . | . . . Slashing . | . . . Piercing . | . . . Highest Corruption . | . . . Average Corruption . | . . . Corruption Purged . | . . . Overload Shots . | . . . Overflow Damage . | . . . Projectiles . | . . . Explosions . | . . . Melee . | . . . Knockbacks . | . . . Impact . | . . . Kinetic . | . . . Secondary . | . . . Self-Inflicted Damage 1 | . . 1 Shots . | . . . Rammed 3 | . . 3 Targets Rammed 3 | . . 3 Kicked . | . . . Crushed . | . . . Highest Temperature 337 | . 60 337 Average Temperature 137 | . 27 149 Received Heat Transfer 375 | . . 375 Effects 2 | . . 2 Shutdowns 1 | . . 1 Energy Bleed 1 | . . 1 Siege Activations . | . . . Robots Corrupted . | . . . Combat Hostiles . | . . . Parts Fried . | . . . Impact Corruptions . | . . . Robots Melted . | . . . Combat Hostiles . | . . . Parts Melted 2 | . . 2 Heat Transferred 1460 | . 124 1336 Parts Sabotaged . | . . . Parts Stolen . | . . . Parts Stripped . | . . . Power Chain Reactions . | . . . Missiles Intercepted . | . . . Alert | -11 -10 -10 ------- Run | Scr Mat Min Peak Influence 90 | . 78 90 Initial 30 | . . 30 Average 30 | . 35 31 Maximum Alert Level . | . . . Low Security (%) 100 | 100 100 100 Level 1 . | . . . Level 2 . | . . . Level 3 . | . . . Level 4 . | . . . Level 5 . | . . . High Security . | . . . Max Security . | . . . Squads Dispatched . | . . . Investigation . | . . . Extermination . | . . . Reinforcement . | . . . Assault . | . . . Garrison . | . . . Intercept . | . . . Construction Impeded . | . . . Haulers Reinforced . | . . . Stealth | -11 -10 -10 --------- Run | Scr Mat Min Distress Signals . | . . . Communications Jammed . | . . . Distress Signals . | . . . Times Spotted 11 | . 3 8 Peak Tracking Total 3 | . 3 2 Tactical Retreats . | . . . Traps | -11 -10 -10 ------- Run | Scr Mat Min Traps Triggered . | . . . Indirectly . | . . . Trap Hack Attempts . | . . . Triggered . | . . . Disarmed . | . . . Reprogrammed . | . . . Reused . | . . . Traps Extracted . | . . . Installed . | . . . Triggered . | . . . Machines | -11 -10 -10 ---------- Run | Scr Mat Min Machines Disabled 1 | . . 1 Max in Single Turn 1 | . . 1 Machines Sabotaged . | . . . Garrisons Compromised . | . . . Overloaded Fab Kills . | . . . Fab Network Shutdowns . | . . . Hacking | -11 -10 -10 --------- Run | Scr Mat Min Machines Accessed 1 | . 1 . Terminals 1 | . 1 . Fabricators . | . . . Repair Stations . | . . . Recycling Units . | . . . Scanalyzers . | . . . Garrison Access . | . . . Total Hacks 1 | . 1 . Successful 1 | . 1 . Failed . | . . . Catastrophic . | . . . Database Lockouts . | . . . Manual 1 | . 1 . Terminals 1 | . 1 . Fabricators . | . . . Repair Stations . | . . . Recycling Units . | . . . Scanalyzers . | . . . Garrison Access . | . . . Terminal Hacks 1 | . 1 . Branch Access Points 1 | . 1 . Fabricator Hacks . | . . . Repair Station Hacks . | . . . Recycling Unit Hacks . | . . . Scanalyzer . | . . . Garrison Access Hacks . | . . . Unauthorized Hacks . | . . . Terminals . | . . . Fabricators . | . . . Repair Stations . | . . . Recycling Units . | . . . Scanalyzers . | . . . Garrison Access . | . . . Data Cores Recovered . | . . . Used . | . . . Hacking Detections 1 | . 1 . Full Trace Events . | . . . Feedback Events . | . . . Feedback Blocked . | . . . Robot Schematics Acquired . | . . . Robots Built . | . . . Matter . | . . . Time . | . . . Total Robot Build Rating . | . . . Part Schematics Acquired . | . . . Parts Built . | . . . Matter . | . . . Time . | . . . Total Part Build Rating . | . . . Parts Repaired . | . . . Time . | . . . Parts Recycled . | . . . Recycled Matter . | . . . Retrieved Matter . | . . . Retrieved Components . | . . . Parts Scanalyzed . | . . . Part Schematics Acquired . | . . . Parts Damaged . | . . . Bothacking | -11 -10 -10 ------------ Run | Scr Mat Min Used RIF Installer . | . . . Robots Hacked . | . . . Non-combat . | . . . Combat . | . . . Robot Hacks Applied . | . . . Relay Couplers Released . | . . . Robots Rewired . | . . . Allies Hacked . | . . . Hacks Repelled . | . . . Allies | -11 -10 -10 -------- Run | Scr Mat Min Total Allies . | . . . Largest Group . | . . . Highest-Rated Group . | . . . Highest-Rated Ally . | . . . Total Orders . | . . . Ally Attacks . | . . . Total Damage . | . . . Kills . | . . . Allies Corrupted . | . . . Allies Melted . | . . . Intel | -11 -10 -10 ------- Run | Scr Mat Min Robot Analysis Total . | . . . Derelict Logs Recovered 1 | . . 1 Drone Launches . | . . . Drone Recoveries . | . . . Exploration | -11 -10 -10 ------------- Run | Scr Mat Min Turns Passed 940 | 68 169 703 Spaces Moved 529 | 49 130 350 Core 27 | 8 . 19 Treads . | . . . Legs 502 | 41 130 331 Wheels . | . . . Hover . | . . . Flight . | . . . Fastest Speed 50 | 50 120 100 Average Speed 130 | 120 120 136 Slowest Speed 200 | 150 120 200 Overloaded Moves . | . . . Propulsion Burnouts . | . . . Robots Hopped . | . . . Cave-ins Triggered . | . . . Exploration Rate (%) 25 | 3 15 59 Regions Visited 2 Branch Regions 1 Pre-discovered Areas 1 | . . 1 Known Exits Taken 1 | . 1 . Unknown Exits Taken 1 | 1 . . Scrap Searched . | . . . Spaces Dug . | . . . Terrain Destroyed . | . . . Melee . | . . . Projectile . | . . . AOE . | . . . Terrain Rammed . | . . . Walls Destroyed . | . . . Machines Disabled . | . . . Actions | -11 -10 -10 --------- Run | Scr Mat Min Total 698 | 55 136 507 Wait 93 | . 2 91 Move 527 | 48 129 350 Hop . | . . . Pick Up 3 | 1 1 1 Fast Attach 13 | 6 1 6 Attach 4 | . . 4 Detach . | . . . Swap 2 | . . 2 Drop 1 | . . 1 Fire 52 | . 3 49 Melee . | . . . Ram 2 | . . 2 Kick 1 | . . 1 Crush . | . . . Escape Stasis . | . . . Rewire . | . . . Trap . | . . . Miscellaneous . | . . . Route ------- -11/Scrapyard -10/Materials (discovered 2 exits: *Min x2) -10/Mines (discovered 2 exits: [*Mat x2]) History --------- Turn | Location | Event 15 | -11/Scrapyard | Discovered new exit (range 15) 69 | -11/Scrapyard | Entered Materials 126 | -10/Materials | Identified exit to Mines 238 | -10/Materials | Entered Mines 241 | -10/Mines | Met a Derelict bent on vengeance 303 | -10/Mines | Build established: Mutant 457 | -10/Mines | Core integrity fell below 50% 497 | -10/Mines | Lost 7 parts (1p2n1u3w) 525 | -10/Mines | Discovered new exit (range 9) 582 | -10/Mines | Discovered new exit (range 14) 663 | -10/Mines | Learned location of 1 exit from Materials 742 | -10/Mines | Learned location of Storage (-8) 773 | -10/Mines | Build established: Scavenger-Mutant 776 | -10/Mines | Assembled infested the area 934 | -10/Mines | Core integrity fell below 20% 941 | -10/Mines | Destroyed by D-53 Grenadier with Mini Grenade Launcher Last Messages --------------- 00776_ ALERT: Infestation in the mines, dispatching Demolisher response squad. 00777_ G-34 Mercenary destroyed. 00784_ K-01 Serf collects debris. 00802_ Acquired Aluminum Leg. 00803_ K-01 Serf collects debris. 00842_ U-05 Engineer builds a Wall. 00859_ Acquired 10 matter. 00925_ Imp. Heat Sink destroyed. 00927_ D-53 Grenadier destroyed. 00929_ Particle Gun destroyed. 00929_ Med. Laser destroyed. 00931_ The unstable cave ceiling collapses. 00933_ Lgt. Ion Engine destroyed. 00936_ The unstable cave ceiling collapses. 00937_ Aluminum Leg destroyed. 00937_ Particle Gun destroyed. 00939_ Aluminum Leg destroyed. 00939_ Sml. Laser destroyed. 00939_ Slammed into D-53 Grenadier. Map ----- +----------------------------------------------------+ | ??## ##?? #??## | | ??# ## #??# ##### | | ??# #???# ##???? | | ???# #????# #????? | | ????# #?????## ##???? | | ????# #?????## ##??? | | ????# ########## #??? | | ???## ## %###??## ##??? | | ???# ### #????# ##???? | | ???# #?# ###### ##????? | | ???## #?# ##?????? | | ????## ##?# ####### ##??????? | | ?????####??# #?????##### ##???????? | | ???????????# #?????????# ##????????? | | ????????#### ##????????# #?????????? | | ?????#### ########## #?????????? | | ?????# #?????????? | | ?????# #?????????? | | ?????# ###########?????????? | | ?????# #???????????????????? | | ??????# ##??????????????????? | | ??????## #??????????????????? | | ??????# #??????????????????? | | ??????## #??????????????????? | | ???????## % #??????????????????? | | ????????# d@ ####????????????????? | | ????????## ## ##???????????????? | | ?????????## #???????????????? | | ??????????######## #???????????????? | | ?????????????????## #??????????????? | | ??????????????????## ????????????? | | ????????????????????# =% ?????????? | | ?????????????????????# !%## "#???????? | | ??????????????????????##|#??? ??????? | | ????????????????????????%#????? ?????? | | ?????????????????????????#???????????? | | ?????????????????????????????????????? | | ?????????????????????????????????????? | | ?????????????????????????????????????? | | ?????????????????????????????????????? | | ?????????????????????????????????????? | | ?????????????????????????????????????? | | ?????????????????????????????????????? | | ?????????????????????????????????????? | | ?????????????????????????????????????? | | ?????????????????????????????????????? | | ?????????????????????????????????????? | | ?????????????????????????????????????? | | ?????????????????????????????????????? | | ?????????????????????????????????????? | +----------------------------------------------------+ Best States ------------- Heat Dissipation 39 Energy Generation 10 Energy Capacity 250 Matter Stores 300 Matter Capacity 300 Sight Range 16 Terrain Scan Density 10 Evasion (%) 40 Targeting Accuracy 5 Item Schematics ----------------- None Robot Schematics ------------------ None Fabricated ------------ Nothing Alien Tech Used ----------------- None Achievements -------------- None Challenges ------------ None Game ------ Seed WaveAdvancedMultirail Manual? 0 Play Time 00:07:39 Cumulative 78.0 hours Start 2021.03.20 @ 18:33:57 End 2021.03.20 @ 18:40:26 Sessions 1 Manual Loads 0 Difficulty Rogue Special Mode None Game No. 214 Rogue 61 Adventurer 148 Explorer 5 Win Type - Total 1 Types 1/0/0/0/0/0/0/0/0 Lore% 53 Gallery% 61 Achievement% 48 Wizard Run 0 Options --------- ASCII 0 Keyboard 0 Movement Numpad Keybinds 0 Fullscreen 1 Font 18/CogNarrow Map View 76x50 Tactical HUD 1 Map Filters NONE Filters NONE Steam 1 RUN: d46da64d-d761-4070-bddf-9bf93d7477ce